{"text_format":"1","workbook":"xlsx","n_sheets":4,"sheets":["Input Criteria","Results","Working DB - Auh","Unified Missing Requirements"],"not_rendered":{"charts":0,"images":3,"macros":1,"external_links":0,"defined_names":5,"comments":1,"pivot_tables":0},"unopened":[],"bounds":{"document_bytes":16777216,"sheet_cells":100000,"rows_first":2000,"rows_last":500,"rows_between":2000,"halvings":0,"cell_chars":16384,"cell_head_chars":4096},"cells_cut":0,"cells_raw":0,"read":"row_number_cap","date_system":"1900"}

{"sheet":"Input Criteria","index":0,"n_rows":67,"n_cols":13,"rows_kept":67,"cut":false,"hidden":false,"merged":[[6,2,6,3]],"read":"row_number_cap"}
[]
[]
[null,null,null,"SSD"]
[]
[]
[]
[null,null,"Please select the input criteria from the fields below (Choose from the drop down list on the right)"]
[null,null,"Renewal Checklist Version:1"]
[null,null,"Process Type","Renewal",null,null,null,null,"Segment","Cat","Process Type","Event","Product"]
[null,null,"Segment","Corporate/Dubai",null,null,null,null,"Corporate/Dubai","Small Groups","Enrolment","Initial","Basic"]
[null,null,"Product","Enhanced","Sales Operations Tool",null,null,{"$f":"D$9&\"-\"&D$10&\"-\"&D$11&\"-\"&D$12&\"-\"&D$13","v":"Renewal-Corporate/Dubai-Enhanced-Individual-Initial"},"Retail","Large Groups","Renewal","Member Addition","Enhanced"]
[null,null,"Category","Individual","Renewal Checklist v1",null,null,{"$f":"H11=H13","v":false},null,"Individual",null,"Member Cancellation","Enhanced-EBP"]
[null,null,"Event Type","Initial",null,null,null,"RENEWAL-CORPORATE/DUBAI-ENHANCED-EBP-Large Groups-INITIAL",null,"Small Investor",null,"Member Correction"]
[null,null,"* Basic is for Abu Dhabi plan only",null,null,null,null,null,null,null,null,"Lost Card"]
[null,null,"** Enhanced - HAAD approved plans only",null,null,null,null,null,null,null,null,"Policy Cancellation"]
[null,null,null,null,null,null,null,null,null,null,null,"Policy Correction"]
[null,null,null,null,null,null,null,null,null,null,null,"Member Reactivation"]
[null,null,null,null,null,null,null,null,null,null,null,"Policy Reactivation"]
[]
[]
[]
[]
[]
[]
[]
[]
[]
[]
[]
[]
[]
[]
[]
[]
[]
[]
[]
[]
[]
[]
[]
[]
[]
[]
[]
[]
[]
[]
[]
[]
[]
[]
[]
[]
[]
[]
[]
[]
[]
[]
[]
[]
[]
[]
[]
[]
[null,null,"All Rights Resarved to National Health Insurance - Daman. For any updated and Amandments please contact CSO Data Management @ CSO_Data@damanhealth.ae"]

{"sheet":"Results","index":1,"n_rows":33,"n_cols":5,"rows_kept":33,"cut":false,"hidden":true,"merged":[[6,3,6,4],[9,3,9,4]]}
[]
[]
[]
[]
[]
[]
[null,null,null,"Please find your search result as shown below:"]
[]
[]
[null,null,null,"Documents Required for :"]
[null,null,null,{"$f":"'Input Criteria'!H11","v":"Renewal-Corporate/Dubai-Enhanced-Individual-Initial"},"Comments"]
[null,null,1,{"$f":"IFERROR(VLOOKUP($D$11&C12,'Working DB - Auh'!A:E,4,0),\"\")","v":"Individual application form (signed & dated)"},{"$f":"IFERROR(VLOOKUP($D$11&C12,'Working DB - Auh'!A:E,5,0),\"\")","v":0}]
[null,null,2,{"$f":"IFERROR(VLOOKUP($D$11&C13,'Working DB - Auh'!A:E,4,0),\"\")","v":"For UAE National sponsorship- passport copy is required, However, in the case that the passport is expired, valid copy of Emirates Identification Identity (EID) can be accepted"},{"$f":"IFERROR(VLOOKUP($D$11&C13,'Working DB - Auh'!A:E,5,0),\"\")","v":0}]
[null,null,3,{"$f":"IFERROR(VLOOKUP($D$11&C14,'Working DB - Auh'!A:E,4,0),\"\")","v":"Photo in jpeg format"},{"$f":"IFERROR(VLOOKUP($D$11&C14,'Working DB - Auh'!A:E,5,0),\"\")","v":0}]
[null,null,4,{"$f":"IFERROR(VLOOKUP($D$11&C15,'Working DB - Auh'!A:E,4,0),\"\")","v":"Medical report for above 60 years of age and those of  less than six (6) months "},{"$f":"IFERROR(VLOOKUP($D$11&C15,'Working DB - Auh'!A:E,5,0),\"\")","v":0}]
[null,null,5,{"$f":"IFERROR(VLOOKUP($D$11&C16,'Working DB - Auh'!A:E,4,0),\"\")","v":"Approved quotation"},{"$f":"IFERROR(VLOOKUP($D$11&C16,'Working DB - Auh'!A:E,5,0),\"\")","v":0}]
[null,null,6,{"$f":"IFERROR(VLOOKUP($D$11&C17,'Working DB - Auh'!A:E,4,0),\"\")","v":"Emirates Identification Identity (EID) for all individuals including diplomats"},{"$f":"IFERROR(VLOOKUP($D$11&C17,'Working DB - Auh'!A:E,5,0),\"\")","v":0}]
[null,null,7,{"$f":"IFERROR(VLOOKUP($D$11&C18,'Working DB - Auh'!A:E,4,0),\"\")","v":"Expat sponsor - sponsor passport, visa & medical card copy from HAAD approved insurance"},{"$f":"IFERROR(VLOOKUP($D$11&C18,'Working DB - Auh'!A:E,5,0),\"\")","v":0}]
[null,null,8,{"$f":"IFERROR(VLOOKUP($D$11&C19,'Working DB - Auh'!A:E,4,0),\"\")","v":"For UAE National sponsorship- passport copy is required, However, in the case that the passport is expired, valid copy of Emirates Identification Identity (EID) can be accepted"},{"$f":"IFERROR(VLOOKUP($D$11&C19,'Working DB - Auh'!A:E,5,0),\"\")","v":0}]
[null,null,9,{"$f":"IFERROR(VLOOKUP($D$11&C20,'Working DB - Auh'!A:E,4,0),\"\")","v":"For UAE National sponsorship- passport copy is required, However, in the case that the passport is expired, valid copy of Emirates Identification Identity (EID) can be accepted"},{"$f":"IFERROR(VLOOKUP($D$11&C20,'Working DB - Auh'!A:E,5,0),\"\")","v":0}]
[null,null,10,{"$f":"IFERROR(VLOOKUP($D$11&C21,'Working DB - Auh'!A:E,4,0),\"\")","v":"Broker Appointment Letter (for broker only)"},{"$f":"IFERROR(VLOOKUP($D$11&C21,'Working DB - Auh'!A:E,5,0),\"\")","v":0}]
[null,null,11,{"$f":"IFERROR(VLOOKUP($D$11&C22,'Working DB - Auh'!A:E,4,0),\"\")","v":"Continuity Of Certificate (COC)"},{"$f":"IFERROR(VLOOKUP($D$11&C22,'Working DB - Auh'!A:E,5,0),\"\")","v":"In case the member was insured with other insurance companies "}]
[null,null,12,{"$f":"IFERROR(VLOOKUP($D$11&C23,'Working DB - Auh'!A:E,4,0),\"\")","v":"DHA Member Information, for members holding Dubai visas"},{"$f":"IFERROR(VLOOKUP($D$11&C23,'Working DB - Auh'!A:E,5,0),\"\")","v":"DHA required information to be provided (Place of visa issuance, work location, residential location, salary, accommodation, commission, etc.)"}]
[null,null,13,{"$f":"IFERROR(VLOOKUP($D$11&C24,'Working DB - Auh'!A:E,4,0),\"\")","v":"Original signed LOA & passport copy of sponsor or principal (upon card delivery)"},{"$f":"IFERROR(VLOOKUP($D$11&C24,'Working DB - Auh'!A:E,5,0),\"\")","v":0}]
[null,null,14,{"$f":"IFERROR(VLOOKUP($D$11&C25,'Working DB - Auh'!A:E,4,0),\"\")","v":""},{"$f":"IFERROR(VLOOKUP($D$11&C25,'Working DB - Auh'!A:E,5,0),\"\")","v":""}]
[null,null,15,{"$f":"IFERROR(VLOOKUP($D$11&C26,'Working DB - Auh'!A:E,4,0),\"\")","v":""},{"$f":"IFERROR(VLOOKUP($D$11&C26,'Working DB - Auh'!A:E,5,0),\"\")","v":""}]
[null,null,16,{"$f":"IFERROR(VLOOKUP($D$11&C27,'Working DB - Auh'!A:E,4,0),\"\")","v":""},{"$f":"IFERROR(VLOOKUP($D$11&C27,'Working DB - Auh'!A:E,5,0),\"\")","v":""}]
[null,null,17,{"$f":"IFERROR(VLOOKUP($D$11&C28,'Working DB - Auh'!A:E,4,0),\"\")","v":""},{"$f":"IFERROR(VLOOKUP($D$11&C28,'Working DB - Auh'!A:E,5,0),\"\")","v":""}]
[null,null,18,{"$f":"IFERROR(VLOOKUP($D$11&C29,'Working DB - Auh'!A:E,4,0),\"\")","v":""},{"$f":"IFERROR(VLOOKUP($D$11&C29,'Working DB - Auh'!A:E,5,0),\"\")","v":""}]
[null,null,19,{"$f":"IFERROR(VLOOKUP($D$11&C30,'Working DB - Auh'!A:E,4,0),\"\")","v":""},{"$f":"IFERROR(VLOOKUP($D$11&C30,'Working DB - Auh'!A:E,5,0),\"\")","v":""}]
[null,null,20,{"$f":"IFERROR(VLOOKUP($D$11&C31,'Working DB - Auh'!A:E,4,0),\"\")","v":""},{"$f":"IFERROR(VLOOKUP($D$11&C31,'Working DB - Auh'!A:E,5,0),\"\")","v":""}]
[null,null,21,{"$f":"IFERROR(VLOOKUP($D$11&C32,'Working DB - Auh'!A:E,4,0),\"\")","v":""},{"$f":"IFERROR(VLOOKUP($D$11&C32,'Working DB - Auh'!A:E,5,0),\"\")","v":""}]
[null,null,22,{"$f":"IFERROR(VLOOKUP($D$11&C33,'Working DB - Auh'!A:E,4,0),\"\")","v":""},{"$f":"IFERROR(VLOOKUP($D$11&C33,'Working DB - Auh'!A:E,5,0),\"\")","v":""}]

{"sheet":"Working DB - Auh","index":2,"n_rows":291,"n_cols":6,"rows_kept":291,"cut":false,"hidden":true,"merged":[]}
["search","Tag name","Requirements","Details","Comments /Remarks","Missing Requirement"]
[{"$f":"B2&C2","v":"Tag nameRequirements"},"Tag name","Requirements","Details","Comments /Remarks"]
["RENEWAL-CORPORATE/DUBAI-BASIC-Small Groups-INITIAL1","RENEWAL-CORPORATE/DUBAI-BASIC-Small Groups-INITIAL",1,"Application Form Signed And Stamped",""]
["RENEWAL-CORPORATE/DUBAI-BASIC-Small Groups-INITIAL2","RENEWAL-CORPORATE/DUBAI-BASIC-Small Groups-INITIAL",2,"Signed Letter Of Acceptance (LOA)",""]
["RENEWAL-CORPORATE/DUBAI-BASIC-Small Groups-INITIAL3","RENEWAL-CORPORATE/DUBAI-BASIC-Small Groups-INITIAL",3,"Salary Declaration",""]
["RENEWAL-CORPORATE/DUBAI-BASIC-Small Groups-INITIAL4","RENEWAL-CORPORATE/DUBAI-BASIC-Small Groups-INITIAL",4,"Labour Contract","Only for Brokers","Labour Contract for Member Name/ Card #..................... Is required"]
["RENEWAL-CORPORATE/DUBAI-BASIC-Small Groups-INITIAL5","RENEWAL-CORPORATE/DUBAI-BASIC-Small Groups-INITIAL",5,"Ministry of Labour (MOL)"]
["RENEWAL-CORPORATE/DUBAI-BASIC-Small Groups-INITIAL6","RENEWAL-CORPORATE/DUBAI-BASIC-Small Groups-INITIAL",6,"Power of Attorney (POA)","If there is partnership"]
["RENEWAL-CORPORATE/DUBAI-BASIC-Small Groups-INITIAL7","RENEWAL-CORPORATE/DUBAI-BASIC-Small Groups-INITIAL",7,"Trade License (TL)",""]
["RENEWAL-CORPORATE/DUBAI-BASIC-Small Groups-INITIAL8","RENEWAL-CORPORATE/DUBAI-BASIC-Small Groups-INITIAL",8,"Passport Copies","","Passport Copy for Member Name/Card # ………………....is required"]
["RENEWAL-CORPORATE/DUBAI-BASIC-Small Groups-INITIAL9","RENEWAL-CORPORATE/DUBAI-BASIC-Small Groups-INITIAL",9,"Valid Visas",""]
["RENEWAL-CORPORATE/DUBAI-BASIC-Small Groups-INITIAL10","RENEWAL-CORPORATE/DUBAI-BASIC-Small Groups-INITIAL",10,"Emirates Identification Identity (EID)","","EID Application for Member Name/Card # ………………… is required"]
["RENEWAL-CORPORATE/DUBAI-BASIC-Small Groups-INITIAL11","RENEWAL-CORPORATE/DUBAI-BASIC-Small Groups-INITIAL",11,"Photos","","Photo for Member Name/Card # ………………...is required "]
["RENEWAL-CORPORATE/DUBAI-BASIC-Small Groups-INITIAL12","RENEWAL-CORPORATE/DUBAI-BASIC-Small Groups-INITIAL",12,"Wage Payment Statement (WPS)","For any individual holding a senior management position ","Wages Payment Statement (WPS) for Member Name/Card #...................... Is required "]
["RENEWAL-CORPORATE/DUBAI-BASIC-Small Groups-INITIAL13","RENEWAL-CORPORATE/DUBAI-BASIC-Small Groups-INITIAL",13,"Relationship Letter","In case of sister companies","Relationship Letter for Member Name/Card # ………………... is required "]
["RENEWAL-CORPORATE/DUBAI-BASIC-Small Groups-INITIAL14","RENEWAL-CORPORATE/DUBAI-BASIC-Small Groups-INITIAL",14,"Tawtheeq or Joining Date","For Gulf Cooperation Council (GCC) members and for Non-Abu Dhabi visa holders"]
["RENEWAL-CORPORATE/DUBAI-BASIC-Small Groups-INITIAL15","RENEWAL-CORPORATE/DUBAI-BASIC-Small Groups-INITIAL",15,"Birth Certificate","For new born babies","Birth Certificate is required "]
["RENEWAL-CORPORATE/DUBAI-BASIC-Small Groups-INITIAL16","RENEWAL-CORPORATE/DUBAI-BASIC-Small Groups-INITIAL",16,"Continuity Of Certificate (COC)","In case the member was insured with other insurance companies ","Continuity Certificate from previous insurance for Member Name/Card # ………………… or old Insurance Card Copy is required"]
["RENEWAL-CORPORATE/DUBAI-BASIC-Small Groups-INITIAL17","RENEWAL-CORPORATE/DUBAI-BASIC-Small Groups-INITIAL",17,"Fine Payment / HAAD Exemption Letter","If fines are applicable","Fine Calculation Payment for Member Name/Card # ………………… is required"]
["RENEWAL-CORPORATE/DUBAI-BASIC-Small Groups-INITIAL18","RENEWAL-CORPORATE/DUBAI-BASIC-Small Groups-INITIAL",18,"Member list ( Excel sheet )","In case total number of members are more than 10"]
["RENEWAL-CORPORATE/DUBAI-BASIC-Small Groups-INITIAL19","RENEWAL-CORPORATE/DUBAI-BASIC-Small Groups-INITIAL",19,"Broker On Record (BOR)","For Brokers"]
["RENEWAL-CORPORATE/DUBAI-BASIC-Small Groups-INITIAL20","RENEWAL-CORPORATE/DUBAI-BASIC-Small Groups-INITIAL",20,"DHA Member Information, for members holding Dubai visas","DHA required information to be provided (Place of visa issuance, work location, residential location, salary, accommodation, commission, etc.)"]
["Tag nameRequirements","Tag name","Requirements","Details","Comments /Remarks"]
["RENEWAL-CORPORATE/DUBAI-BASIC-Large Groups-INITIAL1","RENEWAL-CORPORATE/DUBAI-BASIC-Large Groups-INITIAL",1,"Application Form Signed And Stamped",""]
["RENEWAL-CORPORATE/DUBAI-BASIC-Large Groups-INITIAL2","RENEWAL-CORPORATE/DUBAI-BASIC-Large Groups-INITIAL",2,"Signed Letter Of Acceptance (LOA)",""]
["RENEWAL-CORPORATE/DUBAI-BASIC-Large Groups-INITIAL3","RENEWAL-CORPORATE/DUBAI-BASIC-Large Groups-INITIAL",3,"Salary Declaration",""]
["RENEWAL-CORPORATE/DUBAI-BASIC-Large Groups-INITIAL4","RENEWAL-CORPORATE/DUBAI-BASIC-Large Groups-INITIAL",4,"Ministry of Labour (MOL)","For More Than 200 Member Its Not Required"]
["RENEWAL-CORPORATE/DUBAI-BASIC-Large Groups-INITIAL5","RENEWAL-CORPORATE/DUBAI-BASIC-Large Groups-INITIAL",5,"Power of Attorney (POA)","If There Is Partnership"]
["RENEWAL-CORPORATE/DUBAI-BASIC-Large Groups-INITIAL6","RENEWAL-CORPORATE/DUBAI-BASIC-Large Groups-INITIAL",6,"Trade License (TL)",""]
["RENEWAL-CORPORATE/DUBAI-BASIC-Large Groups-INITIAL7","RENEWAL-CORPORATE/DUBAI-BASIC-Large Groups-INITIAL",7,"Photos","","Photo for Member Name/Card # ………………...is required "]
["RENEWAL-CORPORATE/DUBAI-BASIC-Large Groups-INITIAL8","RENEWAL-CORPORATE/DUBAI-BASIC-Large Groups-INITIAL",8,"Wage Payment Statement (WPS)","For any individual holding a senior management position ","Wages Payment Statement (WPS) for Member Name/Card #...................... Is required "]
[{"$f":"B32&C32","v":"RENEWAL-CORPORATE/DUBAI-BASIC-Large Groups-INITIAL9"},"RENEWAL-CORPORATE/DUBAI-BASIC-Large Groups-INITIAL",9,"Relationship Letter","In case of sister companies","Relationship Letter for Member Name/Card # ………………... is required "]
["RENEWAL-CORPORATE/DUBAI-BASIC-Large Groups-INITIAL10","RENEWAL-CORPORATE/DUBAI-BASIC-Large Groups-INITIAL",10,"Tawtheeq Or Joining Date","For Gulf Cooperation Council (GCC) members and for Non-Abu Dhabi visa holders"]
["RENEWAL-CORPORATE/DUBAI-BASIC-Large Groups-INITIAL11","RENEWAL-CORPORATE/DUBAI-BASIC-Large Groups-INITIAL",11,"Birth Certificate","For new born babies","Birth Certificate is required "]
["RENEWAL-CORPORATE/DUBAI-BASIC-Large Groups-INITIAL12","RENEWAL-CORPORATE/DUBAI-BASIC-Large Groups-INITIAL",12,"Continuity Of Certificate (COC)","In case the member was insured with other insurance companies ","Continuity Certificate from previous insurance for Member Name/Card # ………………… or old Insurance Card Copy is required"]
["RENEWAL-CORPORATE/DUBAI-BASIC-Large Groups-INITIAL13","RENEWAL-CORPORATE/DUBAI-BASIC-Large Groups-INITIAL",13,"Fine Payment / HAAD Exemption Letter","If fines are applicable","Fine Calculation Payment for Member Name/Card # ………………… is required"]
["RENEWAL-CORPORATE/DUBAI-BASIC-Large Groups-INITIAL14","RENEWAL-CORPORATE/DUBAI-BASIC-Large Groups-INITIAL",14,"Declaration Letter of valid passport & visa for all members"," "]
["RENEWAL-CORPORATE/DUBAI-BASIC-Large Groups-INITIAL15","RENEWAL-CORPORATE/DUBAI-BASIC-Large Groups-INITIAL",15,"Member list ( Excel sheet )","In case total number of members are more than 10"]
["RENEWAL-CORPORATE/DUBAI-BASIC-Large Groups-INITIAL16","RENEWAL-CORPORATE/DUBAI-BASIC-Large Groups-INITIAL",16,"DHA Member Information, for members holding Dubai visas","DHA required information to be provided (Place of visa issuance, work location, residential location, salary, accommodation, commission, etc.)"]
["Tag nameRequirements","Tag name","Requirements","Details","Comments /Remarks"]
["RENEWAL-CORPORATE/DUBAI-ENHANCED-Small Groups-INITIAL1","RENEWAL-CORPORATE/DUBAI-ENHANCED-Small Groups-INITIAL",1,"Application Form Signed And Stamped",""]
["RENEWAL-CORPORATE/DUBAI-ENHANCED-Small Groups-INITIAL2","RENEWAL-CORPORATE/DUBAI-ENHANCED-Small Groups-INITIAL",2,"Letter of Acceptance (LOA) Signed",""]
["RENEWAL-CORPORATE/DUBAI-ENHANCED-Small Groups-INITIAL3","RENEWAL-CORPORATE/DUBAI-ENHANCED-Small Groups-INITIAL",3,"Power of Attorney (POA)","If there is partnership"]
["RENEWAL-CORPORATE/DUBAI-ENHANCED-Small Groups-INITIAL4","RENEWAL-CORPORATE/DUBAI-ENHANCED-Small Groups-INITIAL",4,"Trade License (TL)",""]
["RENEWAL-CORPORATE/DUBAI-ENHANCED-Small Groups-INITIAL5","RENEWAL-CORPORATE/DUBAI-ENHANCED-Small Groups-INITIAL",5,"Passport Copies","","Passport Copy for Member Name/Card # ………………....is required"]
["RENEWAL-CORPORATE/DUBAI-ENHANCED-Small Groups-INITIAL6","RENEWAL-CORPORATE/DUBAI-ENHANCED-Small Groups-INITIAL",6,"Valid Visas",""]
["RENEWAL-CORPORATE/DUBAI-ENHANCED-Small Groups-INITIAL7","RENEWAL-CORPORATE/DUBAI-ENHANCED-Small Groups-INITIAL",7,"Emirates Identification Identity (EID)","","EID Application for Member Name/Card # ………………… is required"]
["RENEWAL-CORPORATE/DUBAI-ENHANCED-Small Groups-INITIAL8","RENEWAL-CORPORATE/DUBAI-ENHANCED-Small Groups-INITIAL",8,"Photos","","Photo for Member Name/Card # ………………...is required "]
["RENEWAL-CORPORATE/DUBAI-ENHANCED-Small Groups-INITIAL9","RENEWAL-CORPORATE/DUBAI-ENHANCED-Small Groups-INITIAL",9,"Birth Certificate","For new born babies","Birth Certificate is required "]
["RENEWAL-CORPORATE/DUBAI-ENHANCED-Small Groups-INITIAL10","RENEWAL-CORPORATE/DUBAI-ENHANCED-Small Groups-INITIAL",10,"Continuity Of Certificate (COC)","In case the member was insured with other insurance companies","Continuity Certificate from previous insurance for Member Name/Card # ………………… or old Insurance Card Copy is required"]
["RENEWAL-CORPORATE/DUBAI-ENHANCED-Small Groups-INITIAL11","RENEWAL-CORPORATE/DUBAI-ENHANCED-Small Groups-INITIAL",11,"Loadings, NRP's And Premium Numbers",""]
["RENEWAL-CORPORATE/DUBAI-ENHANCED-Small Groups-INITIAL12","RENEWAL-CORPORATE/DUBAI-ENHANCED-Small Groups-INITIAL",12,"Quote With Signed Letter Of Acceptance (LOA)",""]
["RENEWAL-CORPORATE/DUBAI-ENHANCED-Small Groups-INITIAL13","RENEWAL-CORPORATE/DUBAI-ENHANCED-Small Groups-INITIAL",13,"Member list ( Excel sheet )","In case total number of members are more than 10"]
["RENEWAL-CORPORATE/DUBAI-ENHANCED-Small Groups-INITIAL14","RENEWAL-CORPORATE/DUBAI-ENHANCED-Small Groups-INITIAL",14,"DHA Member Information, for members holding Dubai visas","DHA required information to be provided (Place of visa issuance, work location, residential location, salary, accommodation, commission, etc.)"]
["RENEWAL-CORPORATE/DUBAI-ENHANCED-Small Groups-INITIAL15","RENEWAL-CORPORATE/DUBAI-ENHANCED-Small Groups-INITIAL",15,"Broker On Record (BOR)","For Brokers"]
["Tag nameRequirements","Tag name","Requirements","Details","Comments /Remarks"]
["RENEWAL-CORPORATE/DUBAI-ENHANCED-Large Groups-INITIAL1","RENEWAL-CORPORATE/DUBAI-ENHANCED-Large Groups-INITIAL",1,"Application Form Signed And Stamped",""]
["RENEWAL-CORPORATE/DUBAI-ENHANCED-Large Groups-INITIAL2","RENEWAL-CORPORATE/DUBAI-ENHANCED-Large Groups-INITIAL",2,"Letter of Acceptance (LOA) Signed",""]
["RENEWAL-CORPORATE/DUBAI-ENHANCED-Large Groups-INITIAL3","RENEWAL-CORPORATE/DUBAI-ENHANCED-Large Groups-INITIAL",3,"Power of Attorney (POA)","If there is partnership"]
["RENEWAL-CORPORATE/DUBAI-ENHANCED-Large Groups-INITIAL4","RENEWAL-CORPORATE/DUBAI-ENHANCED-Large Groups-INITIAL",4,"Trade License (TL)",""]
["RENEWAL-CORPORATE/DUBAI-ENHANCED-Large Groups-INITIAL5","RENEWAL-CORPORATE/DUBAI-ENHANCED-Large Groups-INITIAL",5,"Photos","","Photo for Member Name/Card # ………………...is required "]
["RENEWAL-CORPORATE/DUBAI-ENHANCED-Large Groups-INITIAL6","RENEWAL-CORPORATE/DUBAI-ENHANCED-Large Groups-INITIAL",6,"Relationship Letter","In case of sister companies","Relationship Letter for Member Name/Card # ………………... is required "]
[{"$f":"B63&C63","v":"RENEWAL-CORPORATE/DUBAI-ENHANCED-Large Groups-INITIAL7"},"RENEWAL-CORPORATE/DUBAI-ENHANCED-Large Groups-INITIAL",7,"Birth Certificate","For New Born Babies","Birth Certificate is required "]
["RENEWAL-CORPORATE/DUBAI-ENHANCED-Large Groups-INITIAL8","RENEWAL-CORPORATE/DUBAI-ENHANCED-Large Groups-INITIAL",8,"Continuity Of Certificate (COC)","In case the member was insured with other insurance companies ","Continuity Certificate from previous insurance for Member Name/Card # ………………… or old Insurance Card Copy is required"]
["RENEWAL-CORPORATE/DUBAI-ENHANCED-Large Groups-INITIAL9","RENEWAL-CORPORATE/DUBAI-ENHANCED-Large Groups-INITIAL",9,"Member list ( Excel sheet )","In case total number of members are more than 10"]
["RENEWAL-CORPORATE/DUBAI-ENHANCED-Large Groups-INITIAL10","RENEWAL-CORPORATE/DUBAI-ENHANCED-Large Groups-INITIAL",10,"Signed Quotation","medical Report is required for members aged below 6 months or above 60 if the principal count is less than 30 principal"]
["RENEWAL-CORPORATE/DUBAI-ENHANCED-Large Groups-INITIAL11","RENEWAL-CORPORATE/DUBAI-ENHANCED-Large Groups-INITIAL",11,"Declaration Letter of valid passport & visa for all members"," "]
["RENEWAL-CORPORATE/DUBAI-ENHANCED-Large Groups-INITIAL12","RENEWAL-CORPORATE/DUBAI-ENHANCED-Large Groups-INITIAL",12,"DHA Member Information, for members holding Dubai visas","DHA required information to be provided (Place of visa issuance, work location, residential location, salary, accommodation, commission, etc.)"]
["RENEWAL-CORPORATE/DUBAI-ENHANCED-Large Groups-INITIAL13","RENEWAL-CORPORATE/DUBAI-ENHANCED-Large Groups-INITIAL",13,"Broker On Record (BOR)","For Brokers"]
["Tag nameRequirements","Tag name","Requirements","Details","Comments /Remarks"]
["RENEWAL-CORPORATE/DUBAI-BASIC-Individual-INITIAL1","RENEWAL-CORPORATE/DUBAI-BASIC-Individual-INITIAL",1,"Individual application form (signed & dated)"]
["RENEWAL-CORPORATE/DUBAI-BASIC-Individual-INITIAL2","RENEWAL-CORPORATE/DUBAI-BASIC-Individual-INITIAL",2,"Visa copies (new entrant)",null,"New visa copy for Member Name/Card # ………………... is required"]
["RENEWAL-CORPORATE/DUBAI-BASIC-Individual-INITIAL3","RENEWAL-CORPORATE/DUBAI-BASIC-Individual-INITIAL",3,"Photo in jpeg format"]
["RENEWAL-CORPORATE/DUBAI-BASIC-Individual-INITIAL4","RENEWAL-CORPORATE/DUBAI-BASIC-Individual-INITIAL",4,"Salary certificate signed by sponsor. valid for one month","Members list & salary certificate (Basic only) must be attached in one email as per the HAAD requirements  for the basic eligibility (Brokers/Clients) hence, hard copy of the members list  is acceptable if it is stamped, signed & dated along with the salary certificate"]
["RENEWAL-CORPORATE/DUBAI-BASIC-Individual-INITIAL5","RENEWAL-CORPORATE/DUBAI-BASIC-Individual-INITIAL",5,"Emirates Identification Identity (EID) for all individuals including diplomats",null,"EID Application for Member Name/Card # ………………… is required"]
["RENEWAL-CORPORATE/DUBAI-BASIC-Individual-INITIAL6","RENEWAL-CORPORATE/DUBAI-BASIC-Individual-INITIAL",6,"Individuals without identity (Bedon) :  (I) Id card from UAE government or (II) Id card from government of other Emirates or (III) birth certificate or (IV) proof of age document from the court or by HAAD "]
["RENEWAL-CORPORATE/DUBAI-BASIC-Individual-INITIAL7","RENEWAL-CORPORATE/DUBAI-BASIC-Individual-INITIAL",7,"Expat sponsor - sponsor passport, visa & medical card copy from HAAD approved insurance"]
["RENEWAL-CORPORATE/DUBAI-BASIC-Individual-INITIAL8","RENEWAL-CORPORATE/DUBAI-BASIC-Individual-INITIAL",8,"For UAE National sponsorship- passport copy is required, However, in the case that the passport is expired, valid copy of Emirates Identification Identity (EID) can be accepted"]
["RENEWAL-CORPORATE/DUBAI-BASIC-Individual-INITIAL9","RENEWAL-CORPORATE/DUBAI-BASIC-Individual-INITIAL",9,"For deceased sponsor, inheritance of enclosure of legal heirs. "]
["RENEWAL-CORPORATE/DUBAI-BASIC-Individual-INITIAL10","RENEWAL-CORPORATE/DUBAI-BASIC-Individual-INITIAL",10,"Broker Appointment Letter (for broker only)"]
["RENEWAL-CORPORATE/DUBAI-BASIC-Individual-INITIAL11","RENEWAL-CORPORATE/DUBAI-BASIC-Individual-INITIAL",11,"Proof of residence - GCC(Tawtheeq)"]
["RENEWAL-CORPORATE/DUBAI-BASIC-Individual-INITIAL12","RENEWAL-CORPORATE/DUBAI-BASIC-Individual-INITIAL",12,"Continuity certificate / fine payment receipt/ HAAD fines waiver letter",null,"Continuity Certificate from previous insurance for Member Name/Card # ………………… or old Insurance Card Copy is required"]
["RENEWAL-CORPORATE/DUBAI-BASIC-Individual-INITIAL13","RENEWAL-CORPORATE/DUBAI-BASIC-Individual-INITIAL",13,"Tawtheeq & letter mentioning the joining date  (for visa from other Emirates)"]
["RENEWAL-CORPORATE/DUBAI-BASIC-Individual-INITIAL14","RENEWAL-CORPORATE/DUBAI-BASIC-Individual-INITIAL",14,"Original signed LOA & passport copy of sponsor or principal (upon card delivery)"]
["RENEWAL-CORPORATE/DUBAI-BASIC-Individual-INITIAL15","RENEWAL-CORPORATE/DUBAI-BASIC-Individual-INITIAL",15,"Original passport and visa of the member for verification",null,"Passport Copy for Member Name/Card # ………………....is required"]
["RENEWAL-CORPORATE/DUBAI-BASIC-Individual-INITIAL16","RENEWAL-CORPORATE/DUBAI-BASIC-Individual-INITIAL",16,"For fourth child insurance, card number or card copies of the entire family is required (father, mother and three children less than 18 years old)"]
["RENEWAL-CORPORATE/DUBAI-BASIC-Individual-INITIAL17","RENEWAL-CORPORATE/DUBAI-BASIC-Individual-INITIAL",17,"A Court declaration letter is required for all visa sponsored wife in the case where the husband is unable to work"]
["RENEWAL-CORPORATE/DUBAI-BASIC-Individual-INITIAL18","RENEWAL-CORPORATE/DUBAI-BASIC-Individual-INITIAL",18,"DHA Member Information, for members holding Dubai visas","DHA required information to be provided (Place of visa issuance, work location, residential location, salary, accommodation, commission, etc.)"]
["Tag nameRequirements","Tag name","Requirements","Details","Comments /Remarks"]
["RENEWAL-CORPORATE/DUBAI-ENHANCED-Individual-INITIAL1","RENEWAL-CORPORATE/DUBAI-ENHANCED-Individual-INITIAL",1,"Individual application form (signed & dated)"]
["RENEWAL-CORPORATE/DUBAI-ENHANCED-Individual-INITIAL2","RENEWAL-CORPORATE/DUBAI-ENHANCED-Individual-INITIAL",2,"For UAE National sponsorship- passport copy is required, However, in the case that the passport is expired, valid copy of Emirates Identification Identity (EID) can be accepted"]
["RENEWAL-CORPORATE/DUBAI-ENHANCED-Individual-INITIAL3","RENEWAL-CORPORATE/DUBAI-ENHANCED-Individual-INITIAL",3,"Photo in jpeg format"]
["RENEWAL-CORPORATE/DUBAI-ENHANCED-Individual-INITIAL4","RENEWAL-CORPORATE/DUBAI-ENHANCED-Individual-INITIAL",4,"Medical report for above 60 years of age and those of  less than six (6) months "]
["RENEWAL-CORPORATE/DUBAI-ENHANCED-Individual-INITIAL5","RENEWAL-CORPORATE/DUBAI-ENHANCED-Individual-INITIAL",5,"Approved quotation"]
["RENEWAL-CORPORATE/DUBAI-ENHANCED-Individual-INITIAL6","RENEWAL-CORPORATE/DUBAI-ENHANCED-Individual-INITIAL",6,"Emirates Identification Identity (EID) for all individuals including diplomats",null,"EID Application for Member Name/Card # ………………… is required"]
["RENEWAL-CORPORATE/DUBAI-ENHANCED-Individual-INITIAL7","RENEWAL-CORPORATE/DUBAI-ENHANCED-Individual-INITIAL",7,"Expat sponsor - sponsor passport, visa & medical card copy from HAAD approved insurance"]
[{"$f":"B97&C97","v":"RENEWAL-CORPORATE/DUBAI-ENHANCED-Individual-INITIAL8"},"RENEWAL-CORPORATE/DUBAI-ENHANCED-Individual-INITIAL",8,"For UAE National sponsorship- passport copy is required, However, in the case that the passport is expired, valid copy of Emirates Identification Identity (EID) can be accepted"]
["RENEWAL-CORPORATE/DUBAI-ENHANCED-Individual-INITIAL9","RENEWAL-CORPORATE/DUBAI-ENHANCED-Individual-INITIAL",9,"For UAE National sponsorship- passport copy is required, However, in the case that the passport is expired, valid copy of Emirates Identification Identity (EID) can be accepted"]
["RENEWAL-CORPORATE/DUBAI-ENHANCED-Individual-INITIAL10","RENEWAL-CORPORATE/DUBAI-ENHANCED-Individual-INITIAL",10,"Broker Appointment Letter (for broker only)"]
["RENEWAL-CORPORATE/DUBAI-ENHANCED-Individual-INITIAL11","RENEWAL-CORPORATE/DUBAI-ENHANCED-Individual-INITIAL",11,"Continuity Of Certificate (COC)","In case the member was insured with other insurance companies ","Continuity Certificate from previous insurance for Member Name/Card # ………………… or old Insurance Card Copy is required"]
["RENEWAL-CORPORATE/DUBAI-ENHANCED-Individual-INITIAL12","RENEWAL-CORPORATE/DUBAI-ENHANCED-Individual-INITIAL",12,"DHA Member Information, for members holding Dubai visas","DHA required information to be provided (Place of visa issuance, work location, residential location, salary, accommodation, commission, etc.)"]
["RENEWAL-CORPORATE/DUBAI-ENHANCED-Individual-INITIAL13","RENEWAL-CORPORATE/DUBAI-ENHANCED-Individual-INITIAL",13,"Original signed LOA & passport copy of sponsor or principal (upon card delivery)"]
["Tag nameRequirements","Tag name","Requirements","Details","Comments /Remarks"]
["RENEWAL-CORPORATE/DUBAI-ENHANCED-Individual-INITIAL1","RENEWAL-CORPORATE/DUBAI-ENHANCED-Individual-INITIAL",1,"Individual application form (signed & dated)"]
["RENEWAL-CORPORATE/DUBAI-ENHANCED-Individual-INITIAL2","RENEWAL-CORPORATE/DUBAI-ENHANCED-Individual-INITIAL",2,"For UAE National sponsorship- passport copy is required, However, in the case that the passport is expired, valid copy of Emirates Identification Identity (EID) can be accepted"]
["RENEWAL-CORPORATE/DUBAI-ENHANCED-Individual-INITIAL3","RENEWAL-CORPORATE/DUBAI-ENHANCED-Individual-INITIAL",3,"Photo in jpeg format (for new addition)"]
["RENEWAL-CORPORATE/DUBAI-ENHANCED-Individual-INITIAL4","RENEWAL-CORPORATE/DUBAI-ENHANCED-Individual-INITIAL",4,"Medical report for above 60 years of age and those of  less than six (6) months"]
["RENEWAL-CORPORATE/DUBAI-ENHANCED-Individual-INITIAL5","RENEWAL-CORPORATE/DUBAI-ENHANCED-Individual-INITIAL",5,"Approved quotation"]
["RENEWAL-CORPORATE/DUBAI-ENHANCED-Individual-INITIAL6","RENEWAL-CORPORATE/DUBAI-ENHANCED-Individual-INITIAL",6,"Emirates Identification Identity (EID) for all individuals including diplomats",null,"EID Application for Member Name/Card # ………………… is required"]
["RENEWAL-CORPORATE/DUBAI-ENHANCED-Individual-INITIAL7","RENEWAL-CORPORATE/DUBAI-ENHANCED-Individual-INITIAL",7,"Expat sponsor - sponsor passport, visa & medical card copy from HAAD approved insurance"]
["RENEWAL-CORPORATE/DUBAI-ENHANCED-Individual-INITIAL8","RENEWAL-CORPORATE/DUBAI-ENHANCED-Individual-INITIAL",8,"Broker Appointment Letter (for broker only)"]
["RENEWAL-CORPORATE/DUBAI-ENHANCED-Individual-INITIAL9","RENEWAL-CORPORATE/DUBAI-ENHANCED-Individual-INITIAL",9,"Continuity certificate / fine payment receipt/ HAAD fines waiver letter",null,"Continuity Certificate from previous insurance for Member Name/Card # ………………… or old Insurance Card Copy is required"]
["RENEWAL-CORPORATE/DUBAI-ENHANCED-Individual-INITIAL10","RENEWAL-CORPORATE/DUBAI-ENHANCED-Individual-INITIAL",10,"Original signed LOA & passport copy of sponsor or principal (upon card delivery)"]
["RENEWAL-CORPORATE/DUBAI-ENHANCED-Individual-INITIAL11","RENEWAL-CORPORATE/DUBAI-ENHANCED-Individual-INITIAL",11,"DHA Member Information, for members holding Dubai visas","DHA required information to be provided (Place of visa issuance, work location, residential location, salary, accommodation, commission, etc.)"]
["RENEWAL-CORPORATE/DUBAI-ENHANCED-Individual-INITIAL12","RENEWAL-CORPORATE/DUBAI-ENHANCED-Individual-INITIAL",12,"Cancellation letter","If membersto be cancelled","Reason of Cancelation for Member Name/Card # ………………... is required"]
["Tag nameRequirements","Tag name","Requirements","Details"]
["RENEWAL-CORPORATE/DUBAI-BASIC-Individual-INITIAL1","RENEWAL-CORPORATE/DUBAI-BASIC-Individual-INITIAL",1,"Individual application form (signed & dated)"]
["RENEWAL-CORPORATE/DUBAI-BASIC-Individual-INITIAL2","RENEWAL-CORPORATE/DUBAI-BASIC-Individual-INITIAL",2,"Visa copies (new entrant)",null,"New visa copy for Member Name/Card # ………………... is required"]
["RENEWAL-CORPORATE/DUBAI-BASIC-Individual-INITIAL3","RENEWAL-CORPORATE/DUBAI-BASIC-Individual-INITIAL",3,"Photo in jpeg format (for new addition)"]
["RENEWAL-CORPORATE/DUBAI-BASIC-Individual-INITIAL4","RENEWAL-CORPORATE/DUBAI-BASIC-Individual-INITIAL",4,"Salary certificate - signed by sponsor. valid for one month (basic only)","Members list & salary certificate (Basic only) must be attached in one email as per the HAAD requirements  for the basic eligibility (Brokers/Clients) hence, hard copy of the members list  is acceptable if it is stamped, signed & dated along with the salary certificate"]
["RENEWAL-CORPORATE/DUBAI-BASIC-Individual-INITIAL5","RENEWAL-CORPORATE/DUBAI-BASIC-Individual-INITIAL",5,"Emirates Identification Identity (EID) for all individuals including diplomats",null,"EID Application for Member Name/Card # ………………… is required"]
["RENEWAL-CORPORATE/DUBAI-BASIC-Individual-INITIAL6","RENEWAL-CORPORATE/DUBAI-BASIC-Individual-INITIAL",6,"Individuals without identity (Bedon) :  (I) Id card from UAE government or (II) Id card from government of other Emirates or (III) birth certificate or (IV) proof of age document from the court or by HAAD "]
["RENEWAL-CORPORATE/DUBAI-BASIC-Individual-INITIAL7","RENEWAL-CORPORATE/DUBAI-BASIC-Individual-INITIAL",7,"expat sponsor - sponsor passport, visa & medical card copy from HAAD approved insurance"]
["RENEWAL-CORPORATE/DUBAI-BASIC-Individual-INITIAL8","RENEWAL-CORPORATE/DUBAI-BASIC-Individual-INITIAL",8,"For UAE National sponsorship- passport copy is required, However, in the case that the passport is expired, valid copy of Emirates Identification Identity (EID) can be accepted"]
["RENEWAL-CORPORATE/DUBAI-BASIC-Individual-INITIAL9","RENEWAL-CORPORATE/DUBAI-BASIC-Individual-INITIAL",9,"For deceased sponsor, inheritance of enclosure of legal heirs. "]
["RENEWAL-CORPORATE/DUBAI-BASIC-Individual-INITIAL10","RENEWAL-CORPORATE/DUBAI-BASIC-Individual-INITIAL",10,"Broker Appointment Letter (for broker only)"]
["RENEWAL-CORPORATE/DUBAI-BASIC-Individual-INITIAL11","RENEWAL-CORPORATE/DUBAI-BASIC-Individual-INITIAL",11,"Proof of residence - GCC(Tawtheeq)"]
["RENEWAL-CORPORATE/DUBAI-BASIC-Individual-INITIAL12","RENEWAL-CORPORATE/DUBAI-BASIC-Individual-INITIAL",12,"Continuity certificate / fine payment receipt/ HAAD fines waiver letter",null,"Continuity Certificate from previous insurance for Member Name/Card # ………………… or old Insurance Card Copy is required"]
["RENEWAL-CORPORATE/DUBAI-BASIC-Individual-INITIAL13","RENEWAL-CORPORATE/DUBAI-BASIC-Individual-INITIAL",13,"Tawtheeq & letter mentioning the joining date  (for visa from other Emirates)-basic only"]
["RENEWAL-CORPORATE/DUBAI-BASIC-Individual-INITIAL14","RENEWAL-CORPORATE/DUBAI-BASIC-Individual-INITIAL",14,"Original signed LOA & passport copy of sponsor or principal (upon card delivery)"]
["RENEWAL-CORPORATE/DUBAI-BASIC-Individual-INITIAL15","RENEWAL-CORPORATE/DUBAI-BASIC-Individual-INITIAL",15,"Original passport and visa of the member for verification-basic only",null,"Passport Copy for Member Name/Card # ………………....is required"]
["RENEWAL-CORPORATE/DUBAI-BASIC-Individual-INITIAL16","RENEWAL-CORPORATE/DUBAI-BASIC-Individual-INITIAL",16,"For fourth child insurance, card number or card copies of the entire family is required (father, mother and three children less than 18 years old)"]
["RENEWAL-CORPORATE/DUBAI-BASIC-Individual-INITIAL17","RENEWAL-CORPORATE/DUBAI-BASIC-Individual-INITIAL",17,"A Court declaration letter is required for all visa sponsored wife in the case where the husband is unable to work"]
["RENEWAL-CORPORATE/DUBAI-BASIC-Individual-INITIAL18","RENEWAL-CORPORATE/DUBAI-BASIC-Individual-INITIAL",18,"Cancellation letter","If membersto be cancelled","Reason of Cancelation for Member Name/Card # ………………... is required"]
["RENEWAL-CORPORATE/DUBAI-BASIC-Individual-INITIAL19","RENEWAL-CORPORATE/DUBAI-BASIC-Individual-INITIAL",19,"Endorsement form ","For new additions","Endorsement form  For new addition is required"]
["RENEWAL-CORPORATE/DUBAI-BASIC-Individual-INITIAL20","RENEWAL-CORPORATE/DUBAI-BASIC-Individual-INITIAL",20,"DHA Member Information, for members holding Dubai visas","DHA required information to be provided (Place of visa issuance, work location, residential location, salary, accommodation, commission, etc.)"]
["Tag nameRequirements","Tag name","Requirements","Details","Comments /Remarks"]
["RENEWAL-CORPORATE/DUBAI-BASIC-SMALL INVESTOR-INITIAL1","RENEWAL-CORPORATE/DUBAI-BASIC-SMALL INVESTOR-INITIAL",1,"Group / renewal / individual  application form"]
["RENEWAL-CORPORATE/DUBAI-BASIC-SMALL INVESTOR-INITIAL2","RENEWAL-CORPORATE/DUBAI-BASIC-SMALL INVESTOR-INITIAL",2,"Visa copies (new entrant)",null,"New visa copy for Member Name/Card # ………………... is required"]
["RENEWAL-CORPORATE/DUBAI-BASIC-SMALL INVESTOR-INITIAL3","RENEWAL-CORPORATE/DUBAI-BASIC-SMALL INVESTOR-INITIAL",3,"Original stamped proof of ownership of companies (only 1 company allowed for basic eligibility) "]
["RENEWAL-CORPORATE/DUBAI-BASIC-SMALL INVESTOR-INITIAL4","RENEWAL-CORPORATE/DUBAI-BASIC-SMALL INVESTOR-INITIAL",4,"Declaration to be stamped and signed by the investor /employer/partner/sponsor. Emirates  Identification Identity card (EID) of the sponsor or partner  is required to verify signature.","Members list & salary certificate (Basic only) must be attached in one email as per the HAAD requirements  for the basic eligibility (Brokers/Clients) hence, hard copy of the members list  is acceptable if it is stamped, signed & dated along with the salary certificate"]
["RENEWAL-CORPORATE/DUBAI-BASIC-SMALL INVESTOR-INITIAL5","RENEWAL-CORPORATE/DUBAI-BASIC-SMALL INVESTOR-INITIAL",5,"Original Income Declaration with Abu Dhabi Court stamp is required (valid till three (3) months from the date of issuance)"]
["RENEWAL-CORPORATE/DUBAI-BASIC-SMALL INVESTOR-INITIAL6","RENEWAL-CORPORATE/DUBAI-BASIC-SMALL INVESTOR-INITIAL",6,"Residence visa - investor / partner category"]
["RENEWAL-CORPORATE/DUBAI-BASIC-SMALL INVESTOR-INITIAL7","RENEWAL-CORPORATE/DUBAI-BASIC-SMALL INVESTOR-INITIAL",7,"Ministry of Labour List (MOL) with  less than 5 employees for basic eligibility"]
["RENEWAL-CORPORATE/DUBAI-BASIC-SMALL INVESTOR-INITIAL8","RENEWAL-CORPORATE/DUBAI-BASIC-SMALL INVESTOR-INITIAL",8,"Photo in jpg format"]
["RENEWAL-CORPORATE/DUBAI-BASIC-SMALL INVESTOR-INITIAL9","RENEWAL-CORPORATE/DUBAI-BASIC-SMALL INVESTOR-INITIAL",9,"Original signed LOA, POA copy and passport copies both sponsor and member "]
["RENEWAL-CORPORATE/DUBAI-BASIC-SMALL INVESTOR-INITIAL10","RENEWAL-CORPORATE/DUBAI-BASIC-SMALL INVESTOR-INITIAL",10,"Emirates Identification Identity (EID)",null,"EID Application for Member Name/Card # ………………… is required"]
["RENEWAL-CORPORATE/DUBAI-BASIC-SMALL INVESTOR-INITIAL11","RENEWAL-CORPORATE/DUBAI-BASIC-SMALL INVESTOR-INITIAL",11,"Continuity certificate  / fine payment receipt / HAAD fines waiver letter - for new members",null,"Continuity Certificate from previous insurance for Member Name/Card # ………………… or old Insurance Card Copy is required"]
["RENEWAL-CORPORATE/DUBAI-BASIC-SMALL INVESTOR-INITIAL12","RENEWAL-CORPORATE/DUBAI-BASIC-SMALL INVESTOR-INITIAL",12,"DHA Member Information, for members holding Dubai visas","DHA required information to be provided (Place of visa issuance, work location, residential location, salary, accommodation, commission, etc.)"]
["Tag nameRequirements","Tag name","Requirements","Details","Comments /Remarks"]
[{"$f":"B151&C151","v":"Renewal-CORPORATE/DUBAI-BASIC-SMALL INVESTOR-Initial1"},"Renewal-CORPORATE/DUBAI-BASIC-SMALL INVESTOR-Initial",1,"Group / renewal / individual  application form"]
["Renewal-CORPORATE/DUBAI-BASIC-SMALL INVESTOR-Initial2","Renewal-CORPORATE/DUBAI-BASIC-SMALL INVESTOR-Initial",2,"Visa copies (new entrant)",null,"New visa copy for Member Name/Card # ………………... is required"]
["Renewal-CORPORATE/DUBAI-BASIC-SMALL INVESTOR-Initial3","Renewal-CORPORATE/DUBAI-BASIC-SMALL INVESTOR-Initial",3,"Original stamped proof of ownership of companies (only 1 company allowed for basic eligibility) "]
["Renewal-CORPORATE/DUBAI-BASIC-SMALL INVESTOR-Initial4","Renewal-CORPORATE/DUBAI-BASIC-SMALL INVESTOR-Initial",4,"Declaration to be stamped and signed by the investor /employer/partner/sponsor. Emirates  Identification Identity card (EID) of the sponsor or partner  is required to verify signature.","Members list & salary certificate (Basic only) must be attached in one email as per the HAAD requirements  for the basic eligibility (Brokers/Clients) hence, hard copy of the members list  is acceptable if it is stamped, signed & dated along with the salary certificate"]
["Renewal-CORPORATE/DUBAI-BASIC-SMALL INVESTOR-Initial5","Renewal-CORPORATE/DUBAI-BASIC-SMALL INVESTOR-Initial",5,"Original Income Declaration with Abu Dhabi Court stamp is required (valid till three (3) months from the date of issuance)"]
["Renewal-CORPORATE/DUBAI-BASIC-SMALL INVESTOR-Initial6","Renewal-CORPORATE/DUBAI-BASIC-SMALL INVESTOR-Initial",6,"Residence visa - investor / partner category"]
["Renewal-CORPORATE/DUBAI-BASIC-SMALL INVESTOR-Initial7","Renewal-CORPORATE/DUBAI-BASIC-SMALL INVESTOR-Initial",7,"Ministry of Labour List (MOL) with  less than 5 employees for basic eligibility"]
["Renewal-CORPORATE/DUBAI-BASIC-SMALL INVESTOR-Initial8","Renewal-CORPORATE/DUBAI-BASIC-SMALL INVESTOR-Initial",8,"Photo in jpg format"]
["Renewal-CORPORATE/DUBAI-BASIC-SMALL INVESTOR-Initial9","Renewal-CORPORATE/DUBAI-BASIC-SMALL INVESTOR-Initial",9,"Original signed LOA, POA copy and passport copies both sponsor and member "]
["Renewal-CORPORATE/DUBAI-BASIC-SMALL INVESTOR-Initial10","Renewal-CORPORATE/DUBAI-BASIC-SMALL INVESTOR-Initial",10,"Emirates Identification Identity (EID)",null,"EID Application for Member Name/Card # ………………… is required"]
["Renewal-CORPORATE/DUBAI-BASIC-SMALL INVESTOR-Initial11","Renewal-CORPORATE/DUBAI-BASIC-SMALL INVESTOR-Initial",11,"Continuity certificate  / fine payment receipt / HAAD fines waiver letter - for new members",null,"Continuity Certificate from previous insurance for Member Name/Card # ………………… or old Insurance Card Copy is required"]
["Renewal-CORPORATE/DUBAI-BASIC-SMALL INVESTOR-Initial12","Renewal-CORPORATE/DUBAI-BASIC-SMALL INVESTOR-Initial",12,"DHA Member Information, for members holding Dubai visas","DHA required information to be provided (Place of visa issuance, work location, residential location, salary, accommodation, commission, etc.)"]
["Tag nameRequirements","Tag name","Requirements","Details","Comments /Remarks"]
["RENEWAL-CORPORATE/DUBAI-BASIC-Small Groups-INITIAL1","RENEWAL-CORPORATE/DUBAI-BASIC-Small Groups-INITIAL",1,"Application Form Signed And Stamped",""]
["RENEWAL-CORPORATE/DUBAI-BASIC-Small Groups-INITIAL2","RENEWAL-CORPORATE/DUBAI-BASIC-Small Groups-INITIAL",2,"Signed Letter Of Acceptance (LOA)",""]
["RENEWAL-CORPORATE/DUBAI-BASIC-Small Groups-INITIAL3","RENEWAL-CORPORATE/DUBAI-BASIC-Small Groups-INITIAL",3,"Salary Declaration",""]
["RENEWAL-CORPORATE/DUBAI-BASIC-Small Groups-INITIAL4","RENEWAL-CORPORATE/DUBAI-BASIC-Small Groups-INITIAL",4,"Labour Contract","Only for Brokers","Labour Contract for Member Name/ Card #..................... Is required"]
["RENEWAL-CORPORATE/DUBAI-BASIC-Small Groups-INITIAL5","RENEWAL-CORPORATE/DUBAI-BASIC-Small Groups-INITIAL",5,"Ministry of Labour (MOL)"]
["RENEWAL-CORPORATE/DUBAI-BASIC-Small Groups-INITIAL6","RENEWAL-CORPORATE/DUBAI-BASIC-Small Groups-INITIAL",6,"Power of Attorney (POA)","If there is partnership"]
["RENEWAL-CORPORATE/DUBAI-BASIC-Small Groups-INITIAL7","RENEWAL-CORPORATE/DUBAI-BASIC-Small Groups-INITIAL",7,"Trade License (TL)",""]
["RENEWAL-CORPORATE/DUBAI-BASIC-Small Groups-INITIAL8","RENEWAL-CORPORATE/DUBAI-BASIC-Small Groups-INITIAL",8,"Passport Copies","","Passport Copy for Member Name/Card # ………………....is required"]
["RENEWAL-CORPORATE/DUBAI-BASIC-Small Groups-INITIAL9","RENEWAL-CORPORATE/DUBAI-BASIC-Small Groups-INITIAL",9,"Valid Visas",""]
["RENEWAL-CORPORATE/DUBAI-BASIC-Small Groups-INITIAL10","RENEWAL-CORPORATE/DUBAI-BASIC-Small Groups-INITIAL",10,"Emirates Identification Identity (EID)","","EID Application for Member Name/Card # ………………… is required"]
["RENEWAL-CORPORATE/DUBAI-BASIC-Small Groups-INITIAL11","RENEWAL-CORPORATE/DUBAI-BASIC-Small Groups-INITIAL",11,"Photos","","Photo for Member Name/Card # ………………...is required "]
["RENEWAL-CORPORATE/DUBAI-BASIC-Small Groups-INITIAL12","RENEWAL-CORPORATE/DUBAI-BASIC-Small Groups-INITIAL",12,"Wage Payment Statement (WPS)","For any individual holding a senior management position ","Wages Payment Statement (WPS) for Member Name/Card #...................... Is required "]
["RENEWAL-CORPORATE/DUBAI-BASIC-Small Groups-INITIAL13","RENEWAL-CORPORATE/DUBAI-BASIC-Small Groups-INITIAL",13,"Relationship Letter","In case of sister companies","Relationship Letter for Member Name/Card # ………………... is required "]
["RENEWAL-CORPORATE/DUBAI-BASIC-Small Groups-INITIAL14","RENEWAL-CORPORATE/DUBAI-BASIC-Small Groups-INITIAL",14,"Tawtheeq or Joining Date","For Gulf Cooperation Council (GCC) members and for Non-Abu Dhabi visa holders"]
["RENEWAL-CORPORATE/DUBAI-BASIC-Small Groups-INITIAL15","RENEWAL-CORPORATE/DUBAI-BASIC-Small Groups-INITIAL",15,"Birth Certificate","For new born babies","Birth Certificate is required "]
["RENEWAL-CORPORATE/DUBAI-BASIC-Small Groups-INITIAL16","RENEWAL-CORPORATE/DUBAI-BASIC-Small Groups-INITIAL",16,"Continuity Of Certificate (COC)","In case the member was insured with other insurance companies ","Continuity Certificate from previous insurance for Member Name/Card # ………………… or old Insurance Card Copy is required"]
["RENEWAL-CORPORATE/DUBAI-BASIC-Small Groups-INITIAL17","RENEWAL-CORPORATE/DUBAI-BASIC-Small Groups-INITIAL",17,"Fine Payment / HAAD Exemption Letter","If fines are applicable","Fine Calculation Payment for Member Name/Card # ………………… is required"]
["RENEWAL-CORPORATE/DUBAI-BASIC-Small Groups-INITIAL18","RENEWAL-CORPORATE/DUBAI-BASIC-Small Groups-INITIAL",18,"Member list ( Excel sheet )","In case total number of members are more than 10"]
["RENEWAL-CORPORATE/DUBAI-BASIC-Small Groups-INITIAL19","RENEWAL-CORPORATE/DUBAI-BASIC-Small Groups-INITIAL",19,"Broker On Record (BOR)","For Brokers"]
["RENEWAL-CORPORATE/DUBAI-BASIC-Small Groups-INITIAL20","RENEWAL-CORPORATE/DUBAI-BASIC-Small Groups-INITIAL",20,"Cancellation letter","If membersto be cancelled","Reason of Cancelation for Member Name/Card # ………………... is required"]
[{"$f":"B184&C184","v":"RENEWAL-CORPORATE/DUBAI-BASIC-Small Groups-INITIAL21"},"RENEWAL-CORPORATE/DUBAI-BASIC-Small Groups-INITIAL",21,"Endorsement form ","For new additions","Endorsement form  For new addition is required"]
["RENEWAL-CORPORATE/DUBAI-BASIC-Small Groups-INITIAL22","RENEWAL-CORPORATE/DUBAI-BASIC-Small Groups-INITIAL",22,"DHA Member Information, for members holding Dubai visas","DHA required information to be provided (Place of visa issuance, work location, residential location, salary, accommodation, commission, etc.)"]
["Tag nameRequirements","Tag name","Requirements","Details","Comments /Remarks"]
["RENEWAL-CORPORATE/DUBAI-BASIC-Large Groups-INITIAL1","RENEWAL-CORPORATE/DUBAI-BASIC-Large Groups-INITIAL",1,"Application Form Signed And Stamped",""]
["RENEWAL-CORPORATE/DUBAI-BASIC-Large Groups-INITIAL2","RENEWAL-CORPORATE/DUBAI-BASIC-Large Groups-INITIAL",2,"Declaration Letter of valid passport & visa for all members"," "]
["RENEWAL-CORPORATE/DUBAI-BASIC-Large Groups-INITIAL3","RENEWAL-CORPORATE/DUBAI-BASIC-Large Groups-INITIAL",3,"Combined Undertaking letter","For new born babies & new entrant along with EID application"]
["RENEWAL-CORPORATE/DUBAI-BASIC-Large Groups-INITIAL4","RENEWAL-CORPORATE/DUBAI-BASIC-Large Groups-INITIAL",4,"Signed Letter Of Acceptance (LOA)",""]
["RENEWAL-CORPORATE/DUBAI-BASIC-Large Groups-INITIAL5","RENEWAL-CORPORATE/DUBAI-BASIC-Large Groups-INITIAL",5,"Salary Declaration",""]
["RENEWAL-CORPORATE/DUBAI-BASIC-Large Groups-INITIAL6","RENEWAL-CORPORATE/DUBAI-BASIC-Large Groups-INITIAL",6,"Ministry of Labour (MOL)","For More Than 200 Member Its Not Required"]
["RENEWAL-CORPORATE/DUBAI-BASIC-Large Groups-INITIAL7","RENEWAL-CORPORATE/DUBAI-BASIC-Large Groups-INITIAL",7,"Power of Attorney (POA)","If There Is Partnership"]
["RENEWAL-CORPORATE/DUBAI-BASIC-Large Groups-INITIAL8","RENEWAL-CORPORATE/DUBAI-BASIC-Large Groups-INITIAL",8,"Trade License (TL)",""]
["RENEWAL-CORPORATE/DUBAI-BASIC-Large Groups-INITIAL9","RENEWAL-CORPORATE/DUBAI-BASIC-Large Groups-INITIAL",9,"Photos","","Photo for Member Name/Card # ………………...is required "]
["RENEWAL-CORPORATE/DUBAI-BASIC-Large Groups-INITIAL10","RENEWAL-CORPORATE/DUBAI-BASIC-Large Groups-INITIAL",10,"Wage Payment Statement (WPS)","For any individual holding a senior management position ","Wages Payment Statement (WPS) for Member Name/Card #...................... Is required "]
["RENEWAL-CORPORATE/DUBAI-BASIC-Large Groups-INITIAL11","RENEWAL-CORPORATE/DUBAI-BASIC-Large Groups-INITIAL",11,"Relationship Letter","In case of sister companies","Relationship Letter for Member Name/Card # ………………... is required "]
["RENEWAL-CORPORATE/DUBAI-BASIC-Large Groups-INITIAL12","RENEWAL-CORPORATE/DUBAI-BASIC-Large Groups-INITIAL",12,"Tawtheeq Or Joining Date","For Gulf Cooperation Council (GCC) members and for Non-Abu Dhabi visa holders"]
["RENEWAL-CORPORATE/DUBAI-BASIC-Large Groups-INITIAL13","RENEWAL-CORPORATE/DUBAI-BASIC-Large Groups-INITIAL",13,"Birth Certificate","For new born babies","Birth Certificate is required "]
["RENEWAL-CORPORATE/DUBAI-BASIC-Large Groups-INITIAL14","RENEWAL-CORPORATE/DUBAI-BASIC-Large Groups-INITIAL",14,"Continuity Of Certificate (COC)","In case the member was insured with other insurance companies ","Continuity Certificate from previous insurance for Member Name/Card # ………………… or old Insurance Card Copy is required"]
["RENEWAL-CORPORATE/DUBAI-BASIC-Large Groups-INITIAL15","RENEWAL-CORPORATE/DUBAI-BASIC-Large Groups-INITIAL",15,"Fine Payment / HAAD Exemption Letter","If fines are applicable","Fine Calculation Payment for Member Name/Card # ………………… is required"]
["RENEWAL-CORPORATE/DUBAI-BASIC-Large Groups-INITIAL16","RENEWAL-CORPORATE/DUBAI-BASIC-Large Groups-INITIAL",16,"Member list ( Excel sheet )","In case total number of members are more than 10"]
["RENEWAL-CORPORATE/DUBAI-BASIC-Large Groups-INITIAL17","RENEWAL-CORPORATE/DUBAI-BASIC-Large Groups-INITIAL",17,"Cancellation letter","If membersto be cancelled","Reason of Cancelation for Member Name/Card # ………………... is required"]
["RENEWAL-CORPORATE/DUBAI-BASIC-Large Groups-INITIAL18","RENEWAL-CORPORATE/DUBAI-BASIC-Large Groups-INITIAL",18,"Declaration Letter of valid passport & visa for all members"," "]
["RENEWAL-CORPORATE/DUBAI-BASIC-Large Groups-INITIAL19","RENEWAL-CORPORATE/DUBAI-BASIC-Large Groups-INITIAL",19,"Endorsement form ","For new additions","Endorsement form  For new addition is required"]
["RENEWAL-CORPORATE/DUBAI-BASIC-Large Groups-INITIAL20","RENEWAL-CORPORATE/DUBAI-BASIC-Large Groups-INITIAL",20,"DHA Member Information, for members holding Dubai visas","DHA required information to be provided (Place of visa issuance, work location, residential location, salary, accommodation, commission, etc.)"]
["Tag nameRequirements","Tag name","Requirements","Details","Comments /Remarks"]
["RENEWAL-CORPORATE/DUBAI-ENHANCED-Small Groups-INITIAL1","RENEWAL-CORPORATE/DUBAI-ENHANCED-Small Groups-INITIAL",1,"Application Form Signed And Stamped",""]
["RENEWAL-CORPORATE/DUBAI-ENHANCED-Small Groups-INITIAL2","RENEWAL-CORPORATE/DUBAI-ENHANCED-Small Groups-INITIAL",2,"Letter of Acceptance (LOA) Signed",""]
["RENEWAL-CORPORATE/DUBAI-ENHANCED-Small Groups-INITIAL3","RENEWAL-CORPORATE/DUBAI-ENHANCED-Small Groups-INITIAL",3,"Power of Attorney (POA)","If there is partnership"]
["RENEWAL-CORPORATE/DUBAI-ENHANCED-Small Groups-INITIAL4","RENEWAL-CORPORATE/DUBAI-ENHANCED-Small Groups-INITIAL",4,"Trade License (TL)",""]
[{"$f":"B212&C212","v":"RENEWAL-CORPORATE/DUBAI-ENHANCED-Small Groups-INITIAL5"},"RENEWAL-CORPORATE/DUBAI-ENHANCED-Small Groups-INITIAL",5,"Passport Copies","","Passport Copy for Member Name/Card # ………………....is required"]
["RENEWAL-CORPORATE/DUBAI-ENHANCED-Small Groups-INITIAL6","RENEWAL-CORPORATE/DUBAI-ENHANCED-Small Groups-INITIAL",6,"Valid Visas",""]
["RENEWAL-CORPORATE/DUBAI-ENHANCED-Small Groups-INITIAL7","RENEWAL-CORPORATE/DUBAI-ENHANCED-Small Groups-INITIAL",7,"Photos","","Photo for Member Name/Card # ………………...is required "]
["RENEWAL-CORPORATE/DUBAI-ENHANCED-Small Groups-INITIAL8","RENEWAL-CORPORATE/DUBAI-ENHANCED-Small Groups-INITIAL",8,"Birth Certificate","For new born babies","Birth Certificate is required "]
["RENEWAL-CORPORATE/DUBAI-ENHANCED-Small Groups-INITIAL9","RENEWAL-CORPORATE/DUBAI-ENHANCED-Small Groups-INITIAL",9,"Continuity Of Certificate (COC)","In case the member was insured with other insurance companies ","Continuity Certificate from previous insurance for Member Name/Card # ………………… or old Insurance Card Copy is required"]
["RENEWAL-CORPORATE/DUBAI-ENHANCED-Small Groups-INITIAL10","RENEWAL-CORPORATE/DUBAI-ENHANCED-Small Groups-INITIAL",10,"Loadings, NRP's And Premium Numbers",""]
["RENEWAL-CORPORATE/DUBAI-ENHANCED-Small Groups-INITIAL11","RENEWAL-CORPORATE/DUBAI-ENHANCED-Small Groups-INITIAL",11,"Quote With Signed Letter Of Acceptance (LOA)",""]
["RENEWAL-CORPORATE/DUBAI-ENHANCED-Small Groups-INITIAL12","RENEWAL-CORPORATE/DUBAI-ENHANCED-Small Groups-INITIAL",12,"Member list ( Excel sheet )","In case total number of members are more than 10"]
["RENEWAL-CORPORATE/DUBAI-ENHANCED-Small Groups-INITIAL13","RENEWAL-CORPORATE/DUBAI-ENHANCED-Small Groups-INITIAL",13,"Broker On Record (BOR)","For Brokers"]
["RENEWAL-CORPORATE/DUBAI-ENHANCED-Small Groups-INITIAL14","RENEWAL-CORPORATE/DUBAI-ENHANCED-Small Groups-INITIAL",14,"Cancellation letter","If membersto be cancelled","Reason of Cancelation for Member Name/Card # ………………... is required"]
["RENEWAL-CORPORATE/DUBAI-ENHANCED-Small Groups-INITIAL15","RENEWAL-CORPORATE/DUBAI-ENHANCED-Small Groups-INITIAL",15,"Endorsement form ","For new additions","Endorsement form  For new addition is required"]
["RENEWAL-CORPORATE/DUBAI-ENHANCED-Small Groups-INITIAL16","RENEWAL-CORPORATE/DUBAI-ENHANCED-Small Groups-INITIAL",16,"DHA Member Information, for members holding Dubai visas","DHA required information to be provided (Place of visa issuance, work location, residential location, salary, accommodation, commission, etc.)"]
["Tag nameRequirements","Tag name","Requirements","Details","Comments /Remarks"]
["RENEWAL-CORPORATE/DUBAI-ENHANCED-Large Groups-INITIAL1","RENEWAL-CORPORATE/DUBAI-ENHANCED-Large Groups-INITIAL",1,"Application Form Signed And Stamped",""]
["RENEWAL-CORPORATE/DUBAI-ENHANCED-Large Groups-INITIAL2","RENEWAL-CORPORATE/DUBAI-ENHANCED-Large Groups-INITIAL",2,"Letter of Acceptance (LOA) Signed",""]
["RENEWAL-CORPORATE/DUBAI-ENHANCED-Large Groups-INITIAL3","RENEWAL-CORPORATE/DUBAI-ENHANCED-Large Groups-INITIAL",3,"Power of Attorney (POA)","If there is partnership"]
["RENEWAL-CORPORATE/DUBAI-ENHANCED-Large Groups-INITIAL4","RENEWAL-CORPORATE/DUBAI-ENHANCED-Large Groups-INITIAL",4,"Trade License (TL)",""]
["RENEWAL-CORPORATE/DUBAI-ENHANCED-Large Groups-INITIAL5","RENEWAL-CORPORATE/DUBAI-ENHANCED-Large Groups-INITIAL",5,"Photos","","Photo for Member Name/Card # ………………...is required "]
["RENEWAL-CORPORATE/DUBAI-ENHANCED-Large Groups-INITIAL6","RENEWAL-CORPORATE/DUBAI-ENHANCED-Large Groups-INITIAL",6,"Relationship Letter","In case of sister companies","Relationship Letter for Member Name/Card # ………………... is required "]
["RENEWAL-CORPORATE/DUBAI-ENHANCED-Large Groups-INITIAL7","RENEWAL-CORPORATE/DUBAI-ENHANCED-Large Groups-INITIAL",7,"Birth Certificate","For New Born Babies","Birth Certificate is required "]
["RENEWAL-CORPORATE/DUBAI-ENHANCED-Large Groups-INITIAL8","RENEWAL-CORPORATE/DUBAI-ENHANCED-Large Groups-INITIAL",8,"Continuity Of Certificate (COC)","In case the member was insured with other insurance companies ","Continuity Certificate from previous insurance for Member Name/Card # ………………… or old Insurance Card Copy is required"]
["RENEWAL-CORPORATE/DUBAI-ENHANCED-Large Groups-INITIAL9","RENEWAL-CORPORATE/DUBAI-ENHANCED-Large Groups-INITIAL",9,"Member list ( Excel sheet )","In case total number of members are more than 10"]
["RENEWAL-CORPORATE/DUBAI-ENHANCED-Large Groups-INITIAL10","RENEWAL-CORPORATE/DUBAI-ENHANCED-Large Groups-INITIAL",10,"Signed Quotation","medical Report is required for members aged below 6 months or above 60 if the principal count is less than 30 principal"]
["RENEWAL-CORPORATE/DUBAI-ENHANCED-Large Groups-INITIAL11","RENEWAL-CORPORATE/DUBAI-ENHANCED-Large Groups-INITIAL",11,"Broker On Record (BOR)","For Brokers"]
["RENEWAL-CORPORATE/DUBAI-ENHANCED-Large Groups-INITIAL12","RENEWAL-CORPORATE/DUBAI-ENHANCED-Large Groups-INITIAL",12,"Cancellation letter","If membersto be cancelled","Reason of Cancelation for Member Name/Card # ………………... is required"]
["RENEWAL-CORPORATE/DUBAI-ENHANCED-Large Groups-INITIAL13","RENEWAL-CORPORATE/DUBAI-ENHANCED-Large Groups-INITIAL",13,"Declaration Letter of valid passport & visa for all members"," "]
["RENEWAL-CORPORATE/DUBAI-ENHANCED-Large Groups-INITIAL14","RENEWAL-CORPORATE/DUBAI-ENHANCED-Large Groups-INITIAL",14,"Combined Undertaking letter","For new born babies & new entrant along with EID application"]
["RENEWAL-CORPORATE/DUBAI-ENHANCED-Large Groups-INITIAL15","RENEWAL-CORPORATE/DUBAI-ENHANCED-Large Groups-INITIAL",15,"Endorsement form ","For new additions","Endorsement form  For new addition is required"]
["RENEWAL-CORPORATE/DUBAI-ENHANCED-Large Groups-INITIAL16","RENEWAL-CORPORATE/DUBAI-ENHANCED-Large Groups-INITIAL",16,"DHA Member Information, for members holding Dubai visas","DHA required information to be provided (Place of visa issuance, work location, residential location, salary, accommodation, commission, etc.)"]
[{"$f":"B241&C241","v":"Tag nameRequirements"},"Tag name","Requirements","Details","Comments /Remarks"]
["RENEWAL-CORPORATE/DUBAI-ENHANCED-EBP-Large Groups-INITIAL1","RENEWAL-CORPORATE/DUBAI-ENHANCED-EBP-Large Groups-INITIAL",1,"Application Form Signed And Stamped",""]
["RENEWAL-CORPORATE/DUBAI-ENHANCED-EBP-Large Groups-INITIAL2","RENEWAL-CORPORATE/DUBAI-ENHANCED-EBP-Large Groups-INITIAL",2,"Letter of Acceptance (LOA) Signed",""]
["RENEWAL-CORPORATE/DUBAI-ENHANCED-EBP-Large Groups-INITIAL3","RENEWAL-CORPORATE/DUBAI-ENHANCED-EBP-Large Groups-INITIAL",3,"Power of Attorney (POA)","If there is partnership"]
["RENEWAL-CORPORATE/DUBAI-ENHANCED-EBP-Large Groups-INITIAL4","RENEWAL-CORPORATE/DUBAI-ENHANCED-EBP-Large Groups-INITIAL",4,"Trade License (TL)",""]
["RENEWAL-CORPORATE/DUBAI-ENHANCED-EBP-Large Groups-INITIAL5","RENEWAL-CORPORATE/DUBAI-ENHANCED-EBP-Large Groups-INITIAL",5,"Photos in JPEG format (should be renamed as per the member reference number (first column on the new business excel sheet)","","Photo for Member Name/Card # ………………...is required "]
["RENEWAL-CORPORATE/DUBAI-ENHANCED-EBP-Large Groups-INITIAL6","RENEWAL-CORPORATE/DUBAI-ENHANCED-EBP-Large Groups-INITIAL",6,"Photos in JPEG format (should be renamed as per the member reference number (first column on the new business excel sheet)","In case of sister companies","Relationship Letter for Member Name/Card # ………………... is required "]
["RENEWAL-CORPORATE/DUBAI-ENHANCED-EBP-Large Groups-INITIAL7","RENEWAL-CORPORATE/DUBAI-ENHANCED-EBP-Large Groups-INITIAL",7,"Birth Certificate","For New Born Babies","Birth Certificate is required "]
["RENEWAL-CORPORATE/DUBAI-ENHANCED-EBP-Large Groups-INITIAL8","RENEWAL-CORPORATE/DUBAI-ENHANCED-EBP-Large Groups-INITIAL",8,"Continuity Of Certificate (COC)","In case the member was insured with other insurance companies ","Continuity Certificate from previous insurance for Member Name/Card # ………………… or old Insurance Card Copy is required"]
["RENEWAL-CORPORATE/DUBAI-ENHANCED-EBP-Large Groups-INITIAL9","RENEWAL-CORPORATE/DUBAI-ENHANCED-EBP-Large Groups-INITIAL",9,"Member list ( Excel sheet )","In case total number of members are more than 10"]
["RENEWAL-CORPORATE/DUBAI-ENHANCED-EBP-Large Groups-INITIAL10","RENEWAL-CORPORATE/DUBAI-ENHANCED-EBP-Large Groups-INITIAL",10,"Signed EBP Quotation",""]
["RENEWAL-CORPORATE/DUBAI-ENHANCED-EBP-Large Groups-INITIAL11","RENEWAL-CORPORATE/DUBAI-ENHANCED-EBP-Large Groups-INITIAL",11,"Broker On Record (BOR)","For Brokers"]
["RENEWAL-CORPORATE/DUBAI-ENHANCED-EBP-Large Groups-INITIAL12","RENEWAL-CORPORATE/DUBAI-ENHANCED-EBP-Large Groups-INITIAL",12,"Ministry of Labour list ",null,"if its less than 50 principal"]
["RENEWAL-CORPORATE/DUBAI-ENHANCED-EBP-Large Groups-INITIAL13","RENEWAL-CORPORATE/DUBAI-ENHANCED-EBP-Large Groups-INITIAL",13,"Declaration Letter of valid passport & visa for all members"," "]
["RENEWAL-CORPORATE/DUBAI-ENHANCED-EBP-Large Groups-INITIAL14","RENEWAL-CORPORATE/DUBAI-ENHANCED-EBP-Large Groups-INITIAL",14,"Combined Undertaking letter","For new born babies & new entrant along with EID application"]
["RENEWAL-CORPORATE/DUBAI-ENHANCED-EBP-Large Groups-INITIAL16","RENEWAL-CORPORATE/DUBAI-ENHANCED-EBP-Large Groups-INITIAL",16,"Cancellation letter","If membersto be cancelled","Reason of Cancelation for Member Name/Card # ………………... is required"]
["RENEWAL-CORPORATE/DUBAI-ENHANCED-EBP-Large Groups-INITIAL17","RENEWAL-CORPORATE/DUBAI-ENHANCED-EBP-Large Groups-INITIAL",17,"Continuity Of Certificate (COC)","In case the member was insured with other insurance companies ","Continuity Certificate from previous insurance for Member Name/Card # ………………… or old Insurance Card Copy is required"]
["RENEWAL-CORPORATE/DUBAI-ENHANCED-EBP-Large Groups-INITIAL18","RENEWAL-CORPORATE/DUBAI-ENHANCED-EBP-Large Groups-INITIAL",18,"Endorsement form ","For new additions","Endorsement form  For new addition is required"]
["RENEWAL-CORPORATE/DUBAI-ENHANCED-EBP-Large Groups-INITIAL19","RENEWAL-CORPORATE/DUBAI-ENHANCED-EBP-Large Groups-INITIAL",19,"DHA Member Information, for members holding Dubai visas","DHA required information to be provided (Place of visa issuance, work location, residential location, salary, accommodation, commission, etc.)"]
["Tag nameRequirements","Tag name","Requirements","Details","Comments /Remarks"]
["RENEWAL-CORPORATE/DUBAI-ENHANCED-EBP-Small Groups-INITIAL1","RENEWAL-CORPORATE/DUBAI-ENHANCED-EBP-Small Groups-INITIAL",1,"Application Form Signed And Stamped",""]
["RENEWAL-CORPORATE/DUBAI-ENHANCED-EBP-Small Groups-INITIAL2","RENEWAL-CORPORATE/DUBAI-ENHANCED-EBP-Small Groups-INITIAL",2,"Letter of Acceptance (LOA) Signed",""]
["RENEWAL-CORPORATE/DUBAI-ENHANCED-EBP-Small Groups-INITIAL3","RENEWAL-CORPORATE/DUBAI-ENHANCED-EBP-Small Groups-INITIAL",3,"Power of Attorney (POA)","If there is partnership"]
["RENEWAL-CORPORATE/DUBAI-ENHANCED-EBP-Small Groups-INITIAL4","RENEWAL-CORPORATE/DUBAI-ENHANCED-EBP-Small Groups-INITIAL",4,"Trade License (TL)",""]
["RENEWAL-CORPORATE/DUBAI-ENHANCED-EBP-Small Groups-INITIAL5","RENEWAL-CORPORATE/DUBAI-ENHANCED-EBP-Small Groups-INITIAL",5,"Passport Copies","","Passport Copy for Member Name/Card # ………………....is required"]
["RENEWAL-CORPORATE/DUBAI-ENHANCED-EBP-Small Groups-INITIAL6","RENEWAL-CORPORATE/DUBAI-ENHANCED-EBP-Small Groups-INITIAL",6,"Valid Visas",""]
["RENEWAL-CORPORATE/DUBAI-ENHANCED-EBP-Small Groups-INITIAL7","RENEWAL-CORPORATE/DUBAI-ENHANCED-EBP-Small Groups-INITIAL",7,"Emirates Identification Identity (EID)","","EID Application for Member Name/Card # ………………… is required"]
["RENEWAL-CORPORATE/DUBAI-ENHANCED-EBP-Small Groups-INITIAL8","RENEWAL-CORPORATE/DUBAI-ENHANCED-EBP-Small Groups-INITIAL",8,"Photos","","Photo for Member Name/Card # ………………...is required "]
["RENEWAL-CORPORATE/DUBAI-ENHANCED-EBP-Small Groups-INITIAL9","RENEWAL-CORPORATE/DUBAI-ENHANCED-EBP-Small Groups-INITIAL",9,"Birth Certificate","For new born babies","Birth Certificate is required "]
["RENEWAL-CORPORATE/DUBAI-ENHANCED-EBP-Small Groups-INITIAL10","RENEWAL-CORPORATE/DUBAI-ENHANCED-EBP-Small Groups-INITIAL",10,"Continuity Of Certificate (COC)","In case the member was insured with other insurance companies","Continuity Certificate from previous insurance for Member Name/Card # ………………… or old Insurance Card Copy is required"]
["RENEWAL-CORPORATE/DUBAI-ENHANCED-EBP-Small Groups-INITIAL11","RENEWAL-CORPORATE/DUBAI-ENHANCED-EBP-Small Groups-INITIAL",11,"Loadings, NRP's And Premium Numbers",""]
["RENEWAL-CORPORATE/DUBAI-ENHANCED-EBP-Small Groups-INITIAL12","RENEWAL-CORPORATE/DUBAI-ENHANCED-EBP-Small Groups-INITIAL",12,"Quote With Signed Letter Of Acceptance (LOA)",""]
["RENEWAL-CORPORATE/DUBAI-ENHANCED-EBP-Small Groups-INITIAL13","RENEWAL-CORPORATE/DUBAI-ENHANCED-EBP-Small Groups-INITIAL",13,"Member list ( Excel sheet )","In case total number of members are more than 10"]
["RENEWAL-CORPORATE/DUBAI-ENHANCED-EBP-Small Groups-INITIAL14","RENEWAL-CORPORATE/DUBAI-ENHANCED-EBP-Small Groups-INITIAL",14,"Broker On Record (BOR)","For Brokers"]
["RENEWAL-CORPORATE/DUBAI-ENHANCED-EBP-Small Groups-INITIAL15","RENEWAL-CORPORATE/DUBAI-ENHANCED-EBP-Small Groups-INITIAL",15,"Combined Undertaking letter","For new born babies & new entrant along with EID application"]
["RENEWAL-CORPORATE/DUBAI-ENHANCED-EBP-Small Groups-INITIAL16","RENEWAL-CORPORATE/DUBAI-ENHANCED-EBP-Small Groups-INITIAL",16,"Cancellation letter","If membersto be cancelled","Reason of Cancelation for Member Name/Card # ………………... is required"]
["RENEWAL-CORPORATE/DUBAI-ENHANCED-EBP-Small Groups-INITIAL17","RENEWAL-CORPORATE/DUBAI-ENHANCED-EBP-Small Groups-INITIAL",17,"Endorsement form ","For new additions","Endorsement form  For new addition is required"]
[{"$f":"B278&C278","v":"RENEWAL-CORPORATE/DUBAI-ENHANCED-EBP-Small Groups-INITIAL18"},"RENEWAL-CORPORATE/DUBAI-ENHANCED-EBP-Small Groups-INITIAL",18,"Continuity Of Certificate (COC)","In case the member was insured with other insurance companies ","Continuity Certificate from previous insurance for Member Name/Card # ………………… or old Insurance Card Copy is required"]
["RENEWAL-CORPORATE/DUBAI-ENHANCED-EBP-Small Groups-INITIAL19","RENEWAL-CORPORATE/DUBAI-ENHANCED-EBP-Small Groups-INITIAL",19,"DHA Member Information, for members holding Dubai visas","DHA required information to be provided (Place of visa issuance, work location, residential location, salary, accommodation, commission, etc.)"]
["Tag nameRequirements","Tag name","Requirements","Details","Comments /Remarks"]
["RENEWAL-CORPORATE/DUBAI-ENHANCED-EBP-Individual-INITIAL1","RENEWAL-CORPORATE/DUBAI-ENHANCED-EBP-Individual-INITIAL",1,"Individual application form (signed & dated)"]
["RENEWAL-CORPORATE/DUBAI-ENHANCED-EBP-Individual-INITIAL2","RENEWAL-CORPORATE/DUBAI-ENHANCED-EBP-Individual-INITIAL",2,"For UAE National sponsorship- passport copy is required, However, in the case that the passport is expired, valid copy of Emirates Identification Identity (EID) can be accepted"]
["RENEWAL-CORPORATE/DUBAI-ENHANCED-EBP-Individual-INITIAL3","RENEWAL-CORPORATE/DUBAI-ENHANCED-EBP-Individual-INITIAL",3,"Photo in jpeg format"]
["RENEWAL-CORPORATE/DUBAI-ENHANCED-EBP-Individual-INITIAL4","RENEWAL-CORPORATE/DUBAI-ENHANCED-EBP-Individual-INITIAL",4,"Approved EBP quotation"]
["RENEWAL-CORPORATE/DUBAI-ENHANCED-EBP-Individual-INITIAL5","RENEWAL-CORPORATE/DUBAI-ENHANCED-EBP-Individual-INITIAL",5,"Emirates Identification Identity (EID) for all individuals including diplomats",null,"EID Application for Member Name/Card # ………………… is required"]
["RENEWAL-CORPORATE/DUBAI-ENHANCED-EBP-Individual-INITIAL6","RENEWAL-CORPORATE/DUBAI-ENHANCED-EBP-Individual-INITIAL",6,"Expat sponsor - sponsor passport, visa & medical card copy"]
["RENEWAL-CORPORATE/DUBAI-ENHANCED-EBP-Individual-INITIAL7","RENEWAL-CORPORATE/DUBAI-ENHANCED-EBP-Individual-INITIAL",7,"For UAE National sponsorship- passport copy is required, However, in the case that the passport is expired, valid copy of Emirates Identification Identity (EID) can be accepted"]
["RENEWAL-CORPORATE/DUBAI-ENHANCED-EBP-Individual-INITIAL8","RENEWAL-CORPORATE/DUBAI-ENHANCED-EBP-Individual-INITIAL",8,"Broker Appointment Letter (for broker only)"]
["RENEWAL-CORPORATE/DUBAI-ENHANCED-EBP-Individual-INITIAL9","RENEWAL-CORPORATE/DUBAI-ENHANCED-EBP-Individual-INITIAL",9,"Continuity Of Certificate (COC)","In case the member was insured with other insurance companies ","Continuity Certificate from previous insurance for Member Name/Card # ………………… or old Insurance Card Copy is required"]
["RENEWAL-CORPORATE/DUBAI-ENHANCED-EBP-Individual-INITIAL10","RENEWAL-CORPORATE/DUBAI-ENHANCED-EBP-Individual-INITIAL",10,"Original signed LOA & passport copy of sponsor or principal (upon card delivery)"]
["RENEWAL-CORPORATE/DUBAI-ENHANCED-EBP-Individual-INITIAL11","RENEWAL-CORPORATE/DUBAI-ENHANCED-EBP-Individual-INITIAL",11,"DHA Member Information, for members holding Dubai visas","DHA required information to be provided (Place of visa issuance, work location, residential location, salary, accommodation, commission, etc.)"]

{"sheet":"Unified Missing Requirements","index":3,"n_rows":52,"n_cols":5,"rows_kept":52,"cut":false,"hidden":true,"merged":[]}
[]
[]
[]
[]
[]
[]
["Sr. #","Status ","Keyword","Category","Sub-category"]
[1,"Birth Certificate is required ","Birth Certificate","Missing Documents","Missing Birth Certificate"]
[2,"Please confirm the Cancelation Date for Member Name/Card # …………………","Cancellation Date","Missing Information","Missing Cancellation Date"]
[3,"Reason of Cancelation for Member Name/Card # ………………... is required","Cancellation reason","Missing Information","Missing cancellation reason"]
[4,"Principal Card Number for Member Name/Card # ………………… is required ","Card details","Missing Information","Missing Principal card details"]
[5,"Card Numbers on Excel Sheet is required ","Card details","Missing Information","Missing existing card details"]
[6,"Continuity Certificate from previous insurance for Member Name/Card # ………………… or old Insurance Card Copy is required","Continuity Certificate","Missing Documents","Missing Continuity certificate details"]
[7,"Date on Salary Declaration is required ","Date ","Missing Information","Missing date on salary declaration"]
[8,"Department name for Member Name/Card # ………………... is required","Department","Missing Information","Missing department details"]
[9,"Please confirm Effective Date of upgrade for Member Name/Card # …………………","Effective Date","Missing Information","Clarity on Effective date"]
[10,"Please confirm Effective Date of Addition for Member Name/Card # …………………","Effective Date","Missing Information","Clarity on Effective date"]
[11,"EID Undertaking letter for Member Name/Card # ………………... is required","Emirates ID","Missing Documents","Missing Undertaking letter"]
[12,"EID Application for Member Name/Card # ………………… is required","Emirates ID","Missing Documents","Missing EID application form"]
[13,"Updated Endorsement Form  is required","Endorsement Form","Missing Documents","Missing endorsement form"]
[14,"Updated Cancelation Endorsement for Member Name/Card # …………………  Form  is required","Endorsement Form","Missing Documents","Missing endorsement form"]
[15,"Updated Addition Endorsement Form for Member Name/Card # …………………  is required","Endorsement Form","Missing Documents","Missing endorsement form"]
[16,"Updated Correction Endorsement for Member Name/Card # ………………... Form is required","Endorsement Form","Missing Documents","Missing endorsement form"]
[18,"Addition Endorsement for the previous Policy is required","Endorsement Form","Missing Documents","Missing endorsement form"]
[19,"Fine Calculation Payment for Member Name/Card # ………………… is required","Fine","Missing Documents","Missing fine calculation"]
[20,"Member Name/Card # ………………… is eligible for Fine ","Fine","Missing Documents","Missing fine calculation"]
[21,"Joining Date Letter for Member Name/Card # ………………... is required","Joining Letter","Missing Documents","Missing Joining letter"]
[22,"Labour Contract for Member Name/ Card #..................... Is required","Labour contract","Missing Documents","Missing Labour contract"]
[23,"Marital Status For Member Name/Card # ………………… is required","Marital Status","Missing Information","Missing Maritial status"]
[24,"Marriage Certificate for Member Name ………………….. Is required","Marriage Certificate","Missing Documents","Missing Marriage certificate"]
[25,"Please confirm the total Member Count","Member count","Missing Information","Member count details"]
[26,"Member Information Sheet is required ","Member Information","Missing Documents","Missing member details"]
[27,"Information on Endorsement Form for Member Name/Card # ………………... is required ","Member Information","Missing Information","Missing member details"]
[28,"Passport Copy for Member Name/Card # ………………....is required","Passport copy","Missing Documents","Missing Passport copy"]
[29,"Photo for Member Name/Card # ………………...is required ","Photo","Missing Documents","Missing Photo"]
[30,"Clear Photo for Member Name/ Card #..................... Is required","Photo","Missing Documents","Unclear Photo"]
[31,"Photo names are not matching with the External Reference Number (file names) provided , Please provide the correct names.","Photo","Missing Documents","Mismatched Photos"]
[32,"Please confirm the plan name for Member Name/Card # …………………","Plan","Missing Information","Missing plan details"]
[33,"Correct Policy Number in Endorsement form is required ","Policy number","Missing Information","Missing Policy details"]
[34,"Relationship Letter for Member Name/Card # ………………... is required ","Relationship letter","Missing Documents","Missing Relationship letter"]
[35,"Resignation letter for Member Name/Card # ………………... is required","Resignation Letter","Missing Documents","Missing Resignation letter"]
[36,"Salary certificate is required on company letter head","Salary Certificate","Missing Documents","Missing Salary certificate"]
[37,"Employment Proof for Member Name/Card # ……………………. is required ","Salary Certificate","Missing Documents","Employee employment details"]
[38,"Cut Card Copy for Member Name/Card # ………………... is required","Cut card","Missing Documents","Cut card copy"]
[39,"Staff Number for Member Name/Card # ………………………… has been used by another Member Name/Card # ……………………….. Please Clarify ","Staff number","Missing Information","Wrong staff number"]
[40,"Stamp on Endorsement Form is required ","Stamp","Missing Information","Missing Stamp"]
[41,"Clear Company Stamp in Salary Declaration is required ","Stamp","Missing Information","Missing Stamp"]
[42,"Entry Date Stamp is Not Clear For Member Name……………….. Please Provide Clear One ","Stamp","Missing Information","Missing entry stamp"]
[43,"Valid Trade License is required","Trade Licence","Missing Documents","Missing trade licence"]
[44,"New visa copy for Member Name/Card # ………………... is required","Visa copy","Missing Documents","Missing visa copy"]
[45,"Previous visa copy for Member Name/Card # ……………………… is required","Visa copy","Missing Documents","Missing previous visa copy"]
[46,"Wages Payment Statement (WPS) for Member Name/Card #...................... Is required ","WPS statement","Missing Documents","Missing WPS details"]